Workbook

Sheet Message
A8: Message from the Vice President:
A10: The OPA is pleased to provide you with the enclosed Final 2011 Results Report.
A12: Despite some of the inertial challenges in 2011 with program start up, on average, year one province-wide forecasts were met and the year finished out with strong momentum which continues to build 2012. There are still challenges for LDCs of all sizes and we are committed to ensuring LDCs are successful in meeting their objectives. We look forward to further dialogue to discover opportunities to improve the current program suite with local program opportunities, best practices and successes to better reach our customers in the years to come.
A18: This report was developed in collaboration with the OPA-LDC Reporting and Evaluation Working Group and is designed to help populate LDC annual report templates that will be submitted to the OEB in late September. Between the draft and final reports several improvements were made to improve clarity and transparency based on feedback provided by LDCs, such as: the addition of a glossary tab, total adjustments to savings are now broken out into both the realization rate and net-to-gross ratio for both peak demand and energy savings and modifications were made to the methodology tab. We invite you to continue to provide your feedback.
A25: All results are now considered final for 2011. Any additional 2011 program activity not captured will be reported in the Final 2012 Results Report. Please continue to monitor saveONenergy E-blasts for any further updates and should you have any other questions or comments please contact LDC.Support@powerauthority.on.ca.
A28: We appreciate your collaboration and cooperation throughout the reporting and evaluation process. We look forward to another successful year in 2012.
A30: Sincerely, Andrew Pride

Sheet TOC
A3: Table of Contents
A5: Summary | D5: Provides a "snapshot" of your LDC's OPA-Contracted Province-Wide Program performance in 2011: progress to target using 2 scenarios, sector breakdown and progress against the LDC community.
A6: LDC-Specific Data: table formats, section references and table numbers align with the OEB Reporting Template
A7: 2.3 Results Participation - LDC | D7: Breakdown of initiative-level participation in 2011 for your LDC.
A8: 2.5.1 Evaluation Findings | D8: Provides a summary of the province-wide evaluation findings for each initiative and highlights which initiatives were not evaluated.
A9: 2.5.2 Results - LDC | D9: Provides LDC-specific initiative-level results (net and gross peak demand and energy savings, realization rates, net-to-gross ratios and how each initiative contributes to target)
A10: 3.1.1 Summary - LDC | D10: Provides a portfolio level view of achievement towards your OEB targets in 2011. Contains space to input LDC-specific progress to milestones set out in your CDM Strategy.
A11: Province-Wide Data: LDC performance in aggregate (province-wide results)
A12: Provincial - Participation | D12: Breakdown of initiative-level participation in 2011 for the province.
A13: Provincial - Results | D13: Provides province-wide initiative-level results (net and gross peak demand and energy savings, realization rates, net-to-gross ratios and how each initiative contributes to target)
A14: Provincial - Progress Summary | D14: Provides a portfolio level view of provincial achievement towards province-wide OEB targets in 2011.
A15: Methodology | D15: Provides key equations, notes and an initiative-level breakdown of: how savings are attributed to LDCs, when the savings are considered to 'start' (i.e. what period the savings are attributed to) and how the savings are calculated.
A16: Reference Tables | D16: Provides the sector mapping used for Retrofit and the allocation methodology table used in the consumer program when customer specific information is unavailable.
A17: Glossary | D17: Contains definitions for terms used throughout the report.

Sheet Summary
A1: OPA-Contracted Province-Wide CDM Programs FINAL 2011 Results
B2: LDC: | C2: Westario Power Inc.
B4: FINAL 2011 Progress to Targets | F4: Incremental 2011 | G4: Scenario 1: % of Target Achieved | H4: Scenario 2: % of Target Achieved
B5: Net Annual Peak Demand Savings (MW) | F5: ='2.5.2 Results - LDC'!J11/1000 -> 0.3923821031 | G5: ='3.1.1 Summary - LDC'!E13 -> 0.08461957891 | H5: =('2.5.2 Results - LDC'!J11/1000)/'3.1.1 Summary - LDC'!E12 -> 0.09254294886
B6: Net Cumulative Energy Savings (GWh) | F6: ='2.5.2 Results - LDC'!K11/10^6 -> 1.606179861 | G6: ='3.1.1 Summary - LDC'!F27 -> 0.3021910554 | H6: =((SUM('2.5.2 Results - LDC'!M16:M21,'2.5.2 Results - LDC'!M23,'2.5.2 Results - LDC'!M25:M29,'2.5.2 Results - LDC'!M33:M36,'2.5.2 Results - LDC'!M39,'2.5.2 Results - LDC'!M41:M46)+(SUM('2.5.2 Results - LDC'!K22,'2.5.2 Results - LDC'!K30:K31,'2.5.2 Results - LDC'!K37)*4))/10^6)/'3.1.1 Summary - LDC'!F26 -> 0.3021910554
B8: Scenario 1 = Assumes that demand resource resources have a persistence of 1 year
B9: Scenario 2 = Assumes that demand response resources remain in your territory until 2014
A10: Achievement by Sector
A27: Comparison: Your Achievement vs. LDC Community Achievement
A28: The following graphs assume that demand response resources remain in your territory until 2014 (aligns with Scenario 2)
E32: # of LDCs (Peak Demand Savings Achievement) | F32: Your Progress | G32: # of LDCs (Energy Savings Achievement) | H32: Your Progress
C33: 0 | D33: 0-5% | E33: 9 | F33: =IF(AND($H$5 >= Summary!C33,$H$5 < Summary!C34), E33, " ") ->  | G33: 0 | H33: =IF(AND($H$6>= Summary!C33,$H$6< Summary!C34), G33, " ") -> 
C34: 0.05 | D34: 5-10% | E34: 20 | F34: =IF(AND($H$5 >= Summary!C34,$H$5 < Summary!C35), E34, " ") -> 20 | G34: 4 | H34: =IF(AND($H$6>= Summary!C34,$H$6< Summary!C35), G34, " ") -> 
C35: 0.1 | D35: 10-15% | E35: 24 | F35: =IF(AND($H$5 >= Summary!C35,$H$5 < Summary!C36), E35, " ") ->  | G35: 3 | H35: =IF(AND($H$6>= Summary!C35,$H$6< Summary!C36), G35, " ") -> 
C36: 0.15 | D36: 15-20% | E36: 8 | F36: =IF(AND($H$5 >= Summary!C36,$H$5 < Summary!C37), E36, " ") ->  | G36: 11 | H36: =IF(AND($H$6>= Summary!C36,$H$6< Summary!C37), G36, " ") -> 
C37: 0.2 | D37: 20-25% | E37: 1 | F37: =IF(AND($H$5 >= Summary!C37,$H$5 < Summary!C38), E37, " ") ->  | G37: 4 | H37: =IF(AND($H$6>= Summary!C37,$H$6< Summary!C38), G37, " ") -> 
C38: 0.25 | D38: 25-30% | E38: 1 | F38: =IF(AND($H$5 >= Summary!C38,$H$5 < Summary!C39), E38, " ") ->  | G38: 10 | H38: =IF(AND($H$6>= Summary!C38,$H$6< Summary!C39), G38, " ") -> 
C39: 0.3 | D39: 30-35% | E39: 1 | F39: =IF(AND($H$5 >= Summary!C39,$H$5 < Summary!C40), E39, " ") ->  | G39: 14 | H39: =IF(AND($H$6>= Summary!C39,$H$6< Summary!C40), G39, " ") -> 14
C40: 0.35 | D40: 35-40% | E40: 0 | F40: =IF(AND($H$5 >= Summary!C40,$H$5 < Summary!C41), E40, " ") ->  | G40: 14 | H40: =IF(AND($H$6>= Summary!C40,$H$6< Summary!C41), G40, " ") -> 
C41: 0.4 | D41: 40-45% | E41: 0 | F41: =IF(AND($H$5 >= Summary!C41,$H$5 < Summary!C42), E41, " ") ->  | G41: 3 | H41: =IF(AND($H$6>= Summary!C41,$H$6< Summary!C42), G41, " ") -> 
C42: 0.45 | D42: 45-50% | E42: 0 | F42: =IF(AND($H$5 >= Summary!C42,$H$5 < Summary!C43), E42, " ") ->  | G42: 4 | H42: =IF(AND($H$6>= Summary!C42,$H$6< Summary!C43), G42, " ") -> 
C43: 0.5 | D43: 50-55% | E43: 2 | F43: =IF(AND($H$5 >= Summary!C43,$H$5 < Summary!C44), E43, " ") ->  | G43: 5 | H43: =IF(AND($H$6>= Summary!C43,$H$6< Summary!C44), G43, " ") -> 
C44: 0.55 | D44: 55-60% | E44: 0 | F44: =IF(AND($H$5 >= Summary!C44,$H$5 < Summary!C45), E44, " ") ->  | G44: 1 | H44: =IF(AND($H$6>= Summary!C44,$H$6< Summary!C45), G44, " ") -> 
C45: 0.6 | D45: >60% | E45: 4 | F45: =IF($H$5 >Summary!C45, E45, " ") ->  | G45: 4 | H45: =IF($H$6>Summary!C45, G45, " ") -> 

Sheet 2.3 Results Participation - LDC
A1: Table 1: Participation1
A3: # | B3: Initiative | C3: Unit | D3: Uptake/ Participation Units
A4: Consumer Program
A5: 1 | B5: Appliance Retirement | C5: Appliances | D5: 295.517644
A6: 2 | B6: Appliance Exchange | C6: Appliances | D6: 38.67233338
A7: 3 | B7: HVAC Incentives | C7: Equipment | D7: 173.6301623
A8: 4 | B8: Conservation Instant Coupon Booklet | C8: Products | D8: 2784.977408
A9: 5 | B9: Bi-Annual Retailer Event | C9: Products | D9: 4709.76906
A10: 6 | B10: Retailer Co-op | C10: Products | D10: 0
A11: 7 | B11: Residential Demand Response | C11: Devices | D11: 0
A12: 8 | B12: Residential New Construction | C12: Houses | D12: 0
A13: Business Program
A14: 9 | B14: Efficiency: Equipment Replacement | C14: Projects | D14: 11
A15: 10 | B15: Direct Install Lighting | C15: Projects | D15: 194
A16: 11 | B16: Existing Building Commissioning Incentive | C16: Buildings | D16: 0
A17: 12 | B17: New Construction and Major Renovation Incentive | C17: Buildings | D17: 0
A18: 13 | B18: Energy Audit | C18: Audits | D18: 0
A19: 14 | B19: Commercial Demand Response (part of the Residential program schedule) | C19: Devices | D19: 0
A20: 15 | B20: Demand Response 3 (part of the Industrial program schedule) | C20: Facilities | D20: 0
A21: Industrial Program
A22: 16 | B22: Process & System Upgrades | C22: Projects2 | D22: 0
A23: 17 | B23: Monitoring & Targeting | C23: Projects3 | D23: 0
A24: 18 | B24: Energy Manager | C24: Managers2 3 | D24: 0
A25: 19 | B25: Efficiency: Equipment Replacement Incentive (part of the C&I program schedule) | C25: Projects | D25: 0
A26: 20 | B26: Demand Response 3 | C26: Facilities | D26: 0
A27: Home Assistance Program
A28: 21 | B28: Home Assistance Program | C28: Homes | D28: 0
A29: Pre 2011 Programs Completed in 2011
A30: 22 | B30: Electricity Retrofit Incentive Program | C30: Projects | D30: 13
A31: 23 | B31: High Performance New Construction | C31: Projects | D31: 0.003174391913
A32: 24 | B32: Toronto Comprehensive | C32: Projects | D32: 0
A33: 25 | B33: Multifamily Energy Efficiency Rebates | C33: Projects | D33: 0
A34: 26 | B34: Data Centre Incentive Program | C34: Projects | D34: 0
A35: 27 | B35: EnWin Green Suites | C35: Projects | D35: 0
A36: 1 Please see "Methodology" tab for more information regarding attributing savings to LDCs
A37: 2Results are based on completed incentive projects (see "Methodology" tab for more information)
A38: 3 Includes: Roving Energy Managers, Key Account Managers and Embedded Energy Managers if projects are completed in 2011

Sheet 2.5.1 Evaluation Findings
A1: Table 3: OPA Province-Wide Evaluation Findings
A3: # | B3: Initiative | C3: OPA Province-Wide Key Evaluation Findings
A4: Consumer Program
A5: 1 | B5: Appliance Retirement | C5: * | D5: Overall participation continues to decline year over year
D6: * | F6: Participation declined 17% from 2010 (from over 67,000 units in 2010 to over 56,000 units in 2011)
C7: * | D7: 97% of net resource savings achieved through the home pick-up stream
D8: * | F8: Measure Breakdown: 66% refrigerators, 30% freezers, 4% Dehumidifiers and window air conditioners
C9: * | D9: 3% of net resource savings achieved through the Retailer pick-up stream
D10: * | F10: Measure Breakdown: 90% refrigerators, 10% freezers
C11: * | D11: Net-to-Gross ratio for the initiative was 50%
D12: * | F12: Measure-level free ridership ranges from 82% for the retailer pick-up stream to 49% for the home pick-up stream
D13: * | F13: Measure-level spillover ranges from 3.7% for the retailer pick-up stream to 1.7% for the home pick-up stream
A14: 2 | B14: Appliance Exchange | C14: * | D14: Overall eligible units exchanged declined by 36% from 2010 (from over 5,700 units in 2010 to over 3,600 units in 2011)
D15: * | F15: Measure Breakdown: 75% window air conditioners, 25% dehumidifiers
C16: * | D16: Dehumidifiers and window air conditioners contributed almost equally to the net energy savings achieved
D17: * | F17: Dehumidifiers provide more than three times the energy savings per unit than window air conditioners
C18: * | D18: Window air conditioners contributed to 64% of the net peak demand savings achieved
C19: * | D19: Approximately 96% of consumers reported having replaced their exchanged units (as opposed to retiring the unit)
C20: * | D20: Net-to-Gross ratio for the initiative is consistent with previous evaluations (51.5%)
A21: 3 | B21: HVAC Incentives | C21: * | D21: Total air conditioner and furnace installations increased by 14% (from over 95,800 units in 2010 to over 111,500 units in 2011)
D22: * | F22: Measure Breakdown: 64% furnaces, 10% tier 1 air conditioners (SEER 14.5) and 26% tier 2 air conditioners (SEER 15)
D23: * | F23: Measure breakdown did not change from 2010 to 2011
C24: * | D24: The HVAC Incentives initiative continues to deliver the majority of both the energy (45%) and demand (83%) savings in the consumer program
D25: * | F25: Furnaces accounted for over 91% of energy savings achieved for this initiative
C26: * | D26: Net-to-Gross ratio for the initiative was 17% higher than 2010 (from 43% in 2010 to 60% in 2011)
D27: * | F27: Increase due in part to the removal of programmable thermostats from the program, and an increase in the net-to-gross ratio for both Furnaces and Tier 2 air conditioners (SEER 15)
A28: 4 | B28: Conservation Instant Coupon Booklet | C28: * | D28: Customers redeemed nearly 210,000 coupons, translating to nearly 560,000 products
D29: * | F29: Majority of coupons redeemed were downloadable (~40%) or LDC-branded (~35%)
D30: * | F30: Majority of coupons redeemed were for multi-packs of standard spiral CFLs (37%), followed by multi-packs of specialty CFLs (17%)
C31: * | D31: Per unit savings estimates and net-to-gross ratios for 2011 are based on a weighted average of 2009 and 2010 evaluation findings
C32: * | D32: Careful attention in the 2012 evaluation will be made for standard CFLs since it is believed that the market has largely been transformed
A33: 5 | B33: Bi-Annual Retailer Event | C33: * | D33: Customers redeemed nearly 370,000 coupons, translating to over 870,000 products
D34: * | F34: Majority of coupons redeemed were for multi-packs of standard spiral CFLs (49%), followed by multi-packs of specialty CFLs (16%)
C35: * | D35: Per unit savings estimates and net-to-gross ratios for 2011 are based on a weighted average of 2009 and 2010 evaluation findings
D36: * | F36: Standard CFLs and heavy duty outdoor timers were reintroduced to the initiative in 2011 and contributed more than 64% of the initiative’s 2011 net annual energy savings
D37: * | F37: While the volume of coupons redeemed for heavy duty outdoor timers was relatively small (less than 1%), the measure accounted for 10% of net annual savings due to high per unit savings
C38: * | D38: Careful attention in the 2012 evaluation will be made for standard CFLs since it is believed that the market has largely been transformed.
A39: 6 | B39: Retailer Co-op | C39: * | D39: Initiative was not evaluated in 2011 due to low uptake. Verified Bi-Annual Retailer Event per unit assumptions and free-ridership rates were used to calculate net resource savings
A40: 7 | B40: Residential Demand Response | C40: * | D40: Approximately 20,000 new devices were installed in 2011
D41: * | F41: 99% of the new devices enrolled controlled residential central AC (CAC)
C42: * | D42: 2011 only saw 1 atypical event (in both weather and timing) that had limited participation across the province
D43: * | F43: The ex ante impact developed through the 2009/2010 evaluations was maintained for 2011; residential CAC: 0.56 kW/device, commercial CAC: 0.64 kW/device, and Electric Water Heaters: 0.30 kW/device
A44: 8 | B44: Residential New Construction | C44: * | D44: Initiative was not evaluated in 2011 due to limited uptake
C45: * | D45: Business case assumptions were used to calculate savings
A46: Business Program
A47: 9 | B47: Efficiency: Equipment Replacement | C47: * | E47: Gross verified energy savings were boosted by lighting projects in the prescriptive and custom measure tracks
C48: * | E48: Lighting projects overall were determined to have a realization rate of 112%; 116% when including interactive energy changes
E49: * | F49: On average, the evaluation found high realization rates as a result of both longer operating hours and larger wattage reductions than initial assumptions
E50: * | F50: Low realization rates for engineered lighting projects due to overstated operating hour assumptions
C51: * | E51: Custom non-lighting projects suffered from process issues such as: the absence of required M&V plans, the use of inappropriate assumptions , and the lack of adherence to the M&V plan
C52: * | E52: The final realization rate for summer peak demand was 94%
E53: * | F53: 84% was a result of different methodologies used to calculate peak demand savings
E54: * | F54: 10% due to the benefits from reduced air conditioning load in lighting retrofits
C55: * | E55: Overall net-to-gross ratios in the low 70’s represent an improvement over the 2009 and 2010 ERIP program where net-to-gross ratios were in the low 60’s and low 50’s, respectively.
E56: Strict eligibility requirements and improvements in the pre-approval process contributed to the improvement in net-to-gross ratios
A57: 10 | B57: Direct Install Lighting | C57: * | E57: Though overall performance is above expectations, participation continues to decline year over year as the initiative reaches maturity
C58: * | E58: 70% of province-wide resource savings persist to 2014
E59: * | F59: Over 35% of the projects for 2011 included at least one CFL measure
E60: * | F60: Resource savings from CFLs in the commercial sector only persist for the industry standard of 3 years
C61: * | E61: Since 2009 the overall realization rate for this program has improved
E62: * | F62: 2011 evaluation recorded the highest energy realization rate to date at 89.5%
E63: * | F63: The hours of use values were held constant from the 2010 evaluation and continue to be the main driver of energy realization rate
E64: * | F64: Lights installed in “as needed” areas (e.g., bathrooms, storage areas) were determined to have very low realization rates due to the difference in actual energy saved vs. reported savings
A65: 11 | B65: Existing Building Commissioning Incentive | C65: * | E65: Initiative was not evaluated in 2011, no completed projects in 2011
A66: 12 | B66: New Construction and Major Renovation Incentive | C66: * | E66: Initiative was not evaluated in 2011 due to low uptake
C67: * | E67: Assumptions used are consistent with preliminary reporting based on the 2010 Evaluation findings and consultation with the C&I Work Group (100% realization rate and 50% net-to-gross ratio)
A68: 13 | B68: Energy Audit | C68: * | E68: The evaluation is ongoing. The sample size for 2011 was too small to draw reliable conclusions.
A69: 14 | B69: Commercial Demand Response (part of the Residential program schedule) | C69: * | E69: See residential demand response (#7)
A70: 15 | B70: Demand Response 3 (part of the Industrial program schedule) | C70: * | E70: See Demand Response 3 (#20)
A71: Industrial Program
A72: 16 | B72: Process & System Upgrades | C72: * | E72: Initiative was not evaluated in 2011, no completed projects in 2011
A73: 17 | B73: Monitoring & Targeting | C73: * | E73: Initiative was not evaluated in 2011, no completed projects in 2011
A74: 18 | B74: Energy Manager | C74: * | E74: Initiative was not evaluated in 2011, no completed projects in 2011
A75: 19 | B75: Efficiency: Equipment Replacement Incentive (part of the C&I program schedule) | C75: * | E75: See Efficiency: Equipment Replacement (#9)
A76: 20 | B76: Demand Response 3 | C76: * | E76: Program performance for Tier 1 customers increased with DR-3 participants providing 75% of contracted MW for both sectors
E77: * | F77: Industrial customers outperform commercial customers by provide 84% and 76% of contracted MW, respectively
C78: * | E78: Program continues to diversify but still remains heavily concentrated with less than 5% of the contributors accounting for the majority (~60%) of the load reductions.
C79: * | E79: By increasing the number of contributors in each settlement account and implementation of the new baseline methodology the performance of the program is expected to increase
A80: Home Assistance Program
A81: 21 | B81: Home Assistance Program | C81: * | E81: Initiative was not evaluated in 2011 due to low uptake
C82: * | E82: Business Case assumptions were used to calculate savings
A83: Pre-2011 Programs completed in 2011
A84: 22 | B84: Electricity Retrofit Incentive Program | C84: * | D84: Initiative was not evaluated
C85: * | D85: Net-to-Gross ratios used are consistent with the 2010 evaluation findings (multifamily buildings 99% realization rate and 62% net-to-gross ratio and C&I buildings 77% realization rate and 52% net-to-gross ratio)
A86: 23 | B86: High Performance New Construction | C86: * | D86: Initiative was not evaluated
C87: * | D87: Net-to-Gross ratios used are consistent with the 2010 evaluation findings (realization rate of 100% and net-to-gross ratio of 50%)
A88: 24 | B88: Toronto Comprehensive | C88: * | D88: Initiative was not evaluated
C89: * | D89: Net-to-Gross ratios used are consistent with the 2010 evaluation findings
A90: 25 | B90: Multifamily Energy Efficiency Rebates | C90: * | D90: Initiative was not evaluated
C91: * | D91: Net-to-Gross ratios used are consistent with the 2010 evaluation findings
A92: 26 | B92: Data Centre Incentive Program | C92: * | D92: Initiative was not evaluated
A93: 27 | B93: EnWin Green Suites | C93: * | D93: Initiative was not evaluated

Sheet 2.5.2 Results - LDC
B2: Table 5: Summarized Program Results
B4: Program | F4: Gross Savings | J4: Net Savings | L4: Contribution to Targets
F5: Incremental Peak Demand Savings (kW) | G5: Incremental Energy Savings (kWh) | J5: Incremental Peak Demand Savings (kW) | K5: Incremental Energy Savings (kWh) | L5: Program-to-Date: Net Annual Peak Demand Savings (kW) in 2014 | M5: Program-to-Date: 2011-2014 Net Cumulative Energy Savings (kWh)
B6: Consumer Program Total | F6: =SUM(F16:F23) -> 156.8804788 | G6: 691914.588 | J6: 96.51202699 | K6: 509951.812 | L6: 93.32464066 | M6: 2036956.914
B7: Business Program Total | F7: =SUM(F25:F31) -> 264.4321082 | G7: 980525.4709 | J7: 255.8890425 | K7: 837862.0741 | L7: 225.4813402 | M7: 3260481.798
B8: Industrial Program Total | F8: =SUM(F33:F37) -> 0 | G8: 0 | J8: 0 | K8: 0 | L8: 0 | M8: 0
B9: Home Assistance Program Total | F9: =F39 -> 0 | G9: 0 | J9: 0 | K9: 0 | L9: 0 | M9: 0
B10: Pre-2011 Programs completed in 2011 Total | F10: =SUM(F41:F46) -> 72.52588696 | G10: =SUM(G41:G46) -> 463384.2767 | J10: 39.98103368 | K10: 258365.9746 | L10: 39.98103368 | M10: 1033463.898
B11: Total OPA Contracted Province-Wide CDM Programs | F11: =SUM(F6:F10) -> 493.838474 | G11: 2135824.336 | J11: 392.3821031 | K11: 1606179.861 | L11: 358.7870146 | M11: 6330902.61
B13: # | C13: Initiative | D13: Realization Rate | F13: Gross Savings | H13: Net-to-Gross Ratio | J13: Net Savings | L13: Contribution to Targets
D14: Peak Demand Savings | E14: Energy Savings | F14: Incremental Peak Demand Savings (kW) | G14: Incremental Energy Savings (kWh) | H14: Peak Demand Savings | I14: Energy Savings | J14: Incremental Peak Demand Savings (kW) | K14: Incremental Energy Savings (kWh) | L14: Program-to-Date: Net Annual Peak Demand Savings (kW) in 2014 | M14: Program-to-Date: 2011-2014 Net Cumulative Energy Savings (kWh)
B15: Consumer Program
B16: 1 | C16: Appliance Retirement | D16: 1 | E16: 1 | F16: 35.90211988 | G16: 243090.8017 | H16: 0.5063107559 | I16: 0.5172550964 | J16: 17.7325869 | K16: 123291.9113 | L16: 17.05451468 | M16: 492561.276
B17: 2 | C17: Appliance Exchange | D17: 1 | E17: 1 | F17: 7.510075221 | G17: 9063.322784 | H17: 0.5153651262 | I17: 0.5153651262 | J17: 3.870430864 | K17: 4670.920491 | L17: 1.361116754 | M17: 16439.71673
B18: 3 | C18: HVAC Incentives | D18: 1 | E18: 1 | F18: 99.68643766 | G18: 199730.4688 | H18: 0.5966315531 | I18: 0.5951780901 | J18: 59.43403329 | K18: 118837.1162 | L18: 59.43403329 | M18: 475348.4648
B19: 4 | C19: Conservation Instant Coupon Booklet | D19: 1 | E19: 1 | F19: 5.64289528 | G19: 94465.6304 | H19: 1.13947154 | I19: 1.111692617 | J19: 6.375720107 | K19: 104122.6776 | L19: 6.375720107 | M19: 416490.7105
B20: 5 | C20: Bi-Annual Retailer Event | D20: 1 | E20: 1 | F20: 8.138950738 | G20: 145564.3643 | H20: 1.127874179 | I20: 1.10227745 | J20: 9.099255822 | K20: 159029.1864 | L20: 9.099255822 | M20: 636116.7455
B21: 6 | C21: Retailer Co-op | D21: - | E21: - | F21: 0 | G21: 0 | H21: - | I21: - | J21: 0 | K21: 0 | L21: 0 | M21: 0
B22: 7 | C22: Residential Demand Response | D22: 0 | E22: 0 | F22: 0 | G22: 0 | H22: - | I22: - | J22: 0 | K22: 0 | L22: 0 | M22: 0
B23: 8 | C23: Residential New Construction | D23: - | E23: - | F23: 0 | G23: 0 | H23: - | I23: - | J23: 0 | K23: 0 | L23: 0 | M23: 0
B24: Business Program
B25: 9 | C25: Efficiency: Equipment Replacement | D25: 0.93478882 | E25: 1.353402067 | F25: 84.45443073 | G25: 441522.1321 | H25: 0.7479252012 | I25: 0.7641211236 | J25: 63.1655971 | K25: 337376.3877 | L25: 63.1655971 | M25: 1349505.551
B26: 10 | C26: Direct Install Lighting | D26: 1.075958185 | E26: 0.8950447391 | F26: 179.9776775 | G26: 539003.3388 | H26: 0.9254782317 | I26: 0.928539121 | J26: 192.7234454 | K26: 500485.6864 | L26: 162.3157431 | M26: 1910976.247
B27: 11 | C27: Existing Building Commissioning Incentive | D27: - | E27: - | F27: 0 | G27: 0 | H27: - | I27: - | J27: 0 | K27: 0 | L27: 0 | M27: 0
B28: 12 | C28: New Construction and Major Renovation Incentive | D28: - | E28: - | F28: 0 | G28: 0 | H28: - | I28: - | J28: 0 | K28: 0 | L28: 0 | M28: 0
B29: 13 | C29: Energy Audit | D29: - | E29: - | F29: 0 | G29: 0 | H29: - | I29: - | J29: 0 | K29: 0 | L29: 0 | M29: 0
B30: 14 | C30: Commercial Demand Response (part of the Residential program schedule) | D30: 0 | E30: 0 | F30: 0 | G30: 0 | H30: - | I30: - | J30: 0 | K30: 0 | L30: 0 | M30: 0
B31: 15 | C31: Demand Response 3 (part of the Industrial program schedule) | D31: 0.76 | E31: 1 | F31: 0 | G31: 0 | H31: n/a | I31: n/a | J31: 0 | K31: 0 | L31: 0 | M31: 0
B32: Industrial Program
B33: 16 | C33: Process & System Upgrades | D33: - | E33: - | F33: 0 | G33: 0 | H33: - | I33: - | J33: 0 | K33: 0 | L33: 0 | M33: 0
B34: 17 | C34: Monitoring & Targeting | D34: - | E34: - | F34: 0 | G34: 0 | H34: - | I34: - | J34: 0 | K34: 0 | L34: 0 | M34: 0
B35: 18 | C35: Energy Manager | D35: - | E35: - | F35: 0 | G35: 0 | H35: - | I35: - | J35: 0 | K35: 0 | L35: 0 | M35: 0
B36: 19 | C36: Efficiency: Equipment Replacement Incentive (part of the C&I program schedule) | D36: - | E36: - | F36: 0 | G36: 0 | H36: - | I36: - | J36: 0 | K36: 0 | L36: 0 | M36: 0
B37: 20 | C37: Demand Response 3 | D37: 0.84 | E37: 1 | F37: 0 | G37: 0 | H37: n/a | I37: n/a | J37: 0 | K37: 0 | L37: 0 | M37: 0
B38: Home Assistance Program
B39: 21 | C39: Home Assistance Program | D39: - | E39: - | F39: 0 | G39: 0 | H39: - | I39: - | J39: 0 | K39: 0 | L39: 0 | M39: 0
B40: Pre-2011 Programs completed in 2011
B41: 22 | C41: Electricity Retrofit Incentive Program | D41: 0.8480606034 | E41: 0.8625095563 | F41: 72.10401027 | G41: 461217.5181 | H41: 0.5554820925 | I41: 0.5620497983 | J41: 39.77009534 | K41: 257282.5953 | L41: 39.77009534 | M41: 1029130.381
B42: 23 | C42: High Performance New Construction | D42: 1 | E42: 1 | F42: 0.4218766853 | G42: 2166.758656 | H42: 0.5 | I42: 0.5 | J42: 0.2109383426 | K42: 1083.379328 | L42: 0.2109383426 | M42: 4333.517311
B43: 24 | C43: Toronto Comprehensive | D43: - | E43: - | F43: 0 | G43: 0 | H43: - | I43: - | J43: 0 | K43: 0 | L43: 0 | M43: 0
B44: 25 | C44: Multifamily Energy Efficiency Rebates | D44: - | E44: - | F44: 0 | G44: 0 | H44: - | I44: - | J44: 0 | K44: 0 | L44: 0 | M44: 0
B45: 26 | C45: Data Centre Incentive Program | D45: - | E45: - | F45: 0 | G45: 0 | H45: - | I45: - | J45: 0 | K45: 0 | L45: 0 | M45: 0
B46: 27 | C46: EnWin Green Suites | D46: - | E46: - | F46: 0 | G46: 0 | H46: - | I46: - | J46: 0 | K46: 0 | L46: 0 | M46: 0
C47: Assumes demand response resources have a persistence of 1 year

Sheet 3.1.1 Summary - LDC
A1: Progress Towards CDM Targets
A2: Results are attributed to target using current OPA reporting policies. Energy efficiency resources persist for the duration of the effective useful life. Any upcoming code changes are taken into account. Demand response resources persist for 1 year. Please see methodology tab for more detailed information. Yellow cells are intended for the LDC to input information to complete their OEB Reporting Template.
A3: Table 6: Net Peak Demand Savings at the End User Level (MW)
A5: Implementation Period | B5: Annual
B6: 2011 | C6: 2012 | D6: 2013 | E6: 2014
A7: 2011 - Verified | B7: 0.3923821031 | C7: 0.3923821031 | D7: 0.3912944678 | E7: 0.3587870146
A8: 2012
A9: 2013
A10: 2014 | E10: 0
A11: Verified Net Annual Peak Demand Savings Persisting in 2014: | E11: =SUM(E7:E10) -> 0.3587870146
A12: Westario Power Inc. 2014 Annual CDM Capacity Target: | E12: 4.24
A13: Verified Portion of Peak Demand Savings Target Achieved in 2014(%): | E13: =E11/E12 -> 0.08461957891
A14: LDC Milestone submitted for 2011 | E14: -%
A15: Variance
A17: Table 7: Net Energy Savings at the End User Level (GWh)
A19: Implementation Period | B19: Annual | F19: Cumulative
B20: 2011 | C20: 2012 | D20: 2013 | E20: 2014 | F20: 2011-2014
A21: 2011 - Verified | B21: 1.606179861 | C21: 1.606179861 | D21: 1.603141968 | E21: 1.515400921 | F21: =SUM(B21:E21) -> 6.33090261
A22: 2012
A23: 2013
A24: 2014
A25: Verified Net Cumulative Energy Savings 2011-2014: | F25: =SUM(F21:F24) -> 6.33090261
A26: Westario Power Inc. 2011-2014 Cumulative CDM Energy Target: | F26: 20.95
A27: Verified Portion of Cumulative Energy Target Achieved (%): | F27: =F25/F26 -> 0.3021910554
A28: LDC Milestone submitted for 2011 | F28: -%
A29: Variance

Sheet Provincial - Participation
B2: Table P1: Province-Wide Participation
B4: # | C4: Initiative | D4: Activity Unit | E4: Uptake/ Participation Units
B5: Consumer Program
B6: 1 | C6: Appliance Retirement | D6: Appliances | E6: 56109.55455
B7: 2 | C7: Appliance Exchange | D7: Appliances | E7: 3688
B8: 3 | C8: HVAC Incentives | D8: Equipment | E8: 111587.0453
B9: 4 | C9: Conservation Instant Coupon Booklet | D9: Products4 | E9: 559462
B10: 5 | C10: Bi-Annual Retailer Event | D10: Products5 | E10: 870332
B11: 6 | C11: Retailer Co-op | D11: Products | E11: 152
B12: 7 | C12: Residential Demand Response | D12: Devices | E12: 19577
B13: 8 | C13: Residential New Construction | D13: Houses | E13: 7
B14: Business Program
B15: =B13+1 -> 9 | C15: Efficiency: Equipment Replacement | D15: Projects | E15: 2515.712844
B16: 10 | C16: Direct Installed Lighting | D16: Projects | E16: 20297
B17: 11 | C17: Existing Building Commissioning Incentive | D17: Buildings | E17: -
B18: 12 | C18: New Construction and Major Renovation Incentive | D18: Buildings | E18: 10
B19: 13 | C19: Energy Audit | D19: Audits | E19: 103
B20: 14 | C20: Commercial Demand Response (part of the Residential program schedule) | D20: Devices | E20: 264
B21: 15 | C21: Demand Response 3 (part of the Industrial program schedule) | D21: Facilities | E21: 148
B22: Industrial Program
B23: 16 | C23: Process & System Upgrades2 | D23: Projects | E23: -
B24: 17 | C24: Monitoring & Targeting2 | D24: Projects | E24: -
B25: 18 | C25: Energy Manager2 3 | D25: Managers | E25: -
B26: 19 | C26: Efficiency: Equipment Replacement Incentive (part of the C&I program schedule)1 | D26: Projects | E26: 432.7871563
B27: 20 | C27: Demand Response 3 | D27: Facilities | E27: 134
B28: Home Assistance Program
B29: 21 | C29: Home Assistance Program | D29: Homes | E29: 46
B30: Pre 2011 Programs Completed in 2011
B31: 22 | C31: Electricity Retrofit Incentive Program | D31: Projects | E31: 2023
B32: 23 | C32: High Performance New Construction | D32: Projects | E32: 145
B33: 24 | C33: Toronto Comprehensive | D33: Projects | E33: 553
B34: 25 | C34: Multifamily Energy Efficiency Rebates | D34: Projects | E34: 110
B35: 26 | C35: Data Centre Incentive Program | D35: Projects | E35: 5
B36: 27 | C36: EnWin Green Suites | D36: Projects | E36: 3
B37: 2Results are based on completed incentive projects (see "Methodology" tab for more information)
B38: 3 Includes: Roving Energy Managers, Key Account Managers and Embedded Energy Managers with completed projects
B39: 4 209,693 valid coupons redeemed
B40: 5 369,446 valid coupons redeemed

Sheet Provincial - Results
B2: Table P2: Province-Wide Results
B4: Program | F4: Gross Savings | J4: Net Savings | L4: Contribution to Targets
F5: Incremental Peak Demand Savings (kW) | G5: Incremental Energy Savings (kWh) | J5: Incremental Peak Demand Savings (kW) | K5: Incremental Energy Savings (kWh) | L5: Program-to-Date: Net Annual Peak Demand Savings (kW) in 2014 | M5: Program-to-Date: 2011-2014 Net Cumulative Energy Savings (kWh)
B6: Consumer Program Total | F6: =SUM(F16:F23) -> 73757.28667 | G6: =SUM(G16:G23) -> 192379633.3 | J6: =SUM(J16:J23) -> 49123.41022 | K6: =SUM(K16:K23) -> 133519667.6 | L6: =SUM(L16:L23) -> 38404.63369 | M6: =SUM(M16:M23) -> 534017834.5
B7: Business Program Total | F7: =SUM(F25:F31) -> 78048.28418 | G7: 251304448.4 | J7: 64593.96947 | K7: 198124227.2 | L7: 41047.89706 | M7: 767657789.6
B8: Industrial Program Total | F8: =SUM(F33:F37) -> 68648.27378 | G8: 41493144.87 | J8: 57098.69061 | K8: 31947577.24 | L8: 4613.36711 | M8: 118543018.9
B9: Home Assistance Program Total | F9: =F39 -> 3.517344806 | G9: 56119.19 | J9: 2.462141364 | K9: 39283.433 | L9: 2.462141364 | M9: 157133.732
B10: Pre-2011 Programs completed in 2011 Total | F10: =SUM(F41:F46) -> 87168.94833 | G10: 460822079.3 | J10: 44832.7346 | K10: 241853019.8 | L10: 44832.7346 | M10: 967412079.1
B11: Total OPA Contracted Province-Wide CDM Programs | F11: =SUM(F6:F10) -> 307626.3103 | G11: 946055425.1 | J11: 215651.267 | K11: 605483775.3 | L11: 128901.0946 | M11: 2387787856
B13: # | C13: Initiative | D13: Realization Rate | F13: Gross Savings | H13: Net-to-Gross Ratio | J13: Net Savings | L13: Contribution to Targets
D14: Peak Demand Savings | E14: Energy Savings | F14: Incremental Peak Demand Savings (kW) | G14: Incremental Energy Savings (kWh) | H14: Peak Demand Savings | I14: Energy Savings | J14: Incremental Peak Demand Savings (kW) | K14: Incremental Energy Savings (kWh) | L14: Program-to-Date: Net Annual Peak Demand Savings (kW) in 2014 | M14: Program-to-Date: 2011-2014 Net Cumulative Energy Savings (kWh)
B15: Consumer Program
B16: 1 | C16: Appliance Retirement | D16: 1 | E16: 1 | F16: 6750.410746 | G16: 45971626.6 | H16: 0.5061103262 | I16: 0.5143786474 | J16: 3299.342384 | K16: 23005812.11 | L16: 3159.798207 | M16: 91903302.65
B17: 2 | C17: Appliance Exchange | D17: 1 | E17: 1 | F17: 719.2964173 | G17: 873530.8435 | H17: 0.5130946448 | I17: 0.5130946448 | J17: 370.7002889 | K17: 450187.3334 | L17: 181.4845867 | M17: 1930651.026
B18: 3 | C18: HVAC Incentives | D18: 1 | E18: 1 | F18: 53209.03434 | G18: 99413430.13 | H18: 0.6034906446 | I18: 0.5985881752 | J18: 32037.43275 | K18: 59437670.32 | L18: 32037.43275 | M18: 237750681.3
B19: 4 | C19: Conservation Instant Coupon Booklet | D19: 1 | E19: 1 | F19: 1184.204119 | G19: 19192453.39 | H19: 1.141616831 | I19: 1.110764044 | J19: 1344.265309 | K19: 21211537.05 | L19: 1344.265309 | M19: 84846148.21
B20: 5 | C20: Bi-Annual Retailer Event | D20: 1 | E20: 1 | F20: 1504.020512 | G20: 26899264.64 | H20: 1.123904959 | I20: 1.097583602 | J20: 1681.478097 | K20: 29387468.49 | L20: 1681.478097 | M20: 117549873.9
B21: 6 | C21: Retailer Co-op | D21: 1 | E21: 1 | F21: 0.1805354812 | G21: 3917.458695 | H21: 0.6772500503 | I21: 0.6768067669 | J21: 0.1221919871 | K21: 2651.699989 | L21: 0.1255471155 | M21: 10606.79996
B22: 7 | C22: Residential Demand Response | D22: n/a | E22: n/a | F22: 10390.02 | G22: 23597.3 | H22: n/a | I22: n/a | J22: 10390.02 | K22: 23597.3 | L22: 0 | M22: 23597.3
B23: 8 | C23: Residential New Construction | D23: 1 | E23: 1 | F23: 0.12 | G23: 1813 | H23: 0.41 | I23: 0.41 | J23: 0.0492 | K23: 743.33 | L23: 0.0492 | M23: 2973.32
B24: Business Program
B25: 9 | C25: Efficiency: Equipment Replacement | D25: 1.060137766 | E25: 0.9112879771 | F25: 34201.16494 | G25: 184070265.2 | H25: 0.7153986442 | I25: 0.738860551 | J25: 24467.46703 | K25: 136002257.6 | L25: 24438.15848 | M25: 543856391.7
B26: 10 | C26: Direct Installed Lighting | D26: 1.075958185 | E26: 0.928539121 | F26: 22155.46224 | G26: 65777197.1 | H26: 1.075958185 | I26: 0.928539121 | J26: 23724.48114 | K26: 61076700.78 | L26: 16486.43008 | M26: 221520977.3
B27: 11 | C27: Existing Building Commissioning Incentive | D27: ="-" -> - | E27: ="-" -> - | F27: - | G27: - | H27: - | I27: - | J27: - | K27: - | L27: - | M27: -
B28: 12 | C28: New Construction and Major Renovation Incentive | D28: 0.5 | E28: 0.5 | F28: 246.617 | G28: 823434.492 | H28: 0.5 | I28: 0.5 | J28: 123.3085 | K28: 411717.246 | L28: 123.3085 | M28: 1646868.984
B29: 13 | C29: Energy Audit | D29: ="-" -> - | E29: ="-" -> - | F29: - | G29: - | H29: - | I29: - | J29: - | K29: - | L29: - | M29: -
B30: 14 | C30: Commercial Demand Response (part of the Residential program schedule) | D30: n/a | E30: n/a | F30: 55.04 | G30: 131.04 | H30: n/a | I30: n/a | J30: 55.04 | K30: 131.04 | L30: 0 | M30: 131.04
B31: 15 | C31: Demand Response 3 (part of the Industrial program schedule) | D31: =J31/F31 -> 0.7584699766 | E31: n/a | F31: 21390 | G31: 633420.5785 | H31: n/a | I31: n/a | J31: 16223.6728 | K31: 633420.5785 | L31: 0 | M31: 633420.5785
B32: Industrial Program
B33: 16 | C33: Process & System Upgrades | D33: ="-" -> - | E33: - | F33: - | G33: - | H33: - | I33: - | J33: - | K33: - | L33: - | M33: -
B34: 17 | C34: Monitoring & Targeting | D34: - | E34: - | F34: - | G34: - | H34: - | I34: - | J34: - | K34: - | L34: - | M34: -
B35: 18 | C35: Energy Manager | D35: - | E35: - | F35: - | G35: - | H35: - | I35: - | J35: - | K35: - | L35: - | M35: -
B36: 19 | C36: Efficiency: Equipment Replacement Incentive (part of the C&I program schedule) | D36: 1.110945078 | E36: 0.9096918013 | F36: 6372.273777 | G36: 38412407.57 | H36: 0.7241827276 | I36: 0.7514978041 | J36: 4614.690605 | K36: 28866839.94 | L36: 4613.36711 | M36: 115462281.5
B37: 20 | C37: Demand Response 3 | D37: =J37/F37 -> 0.8427644679 | E37: n/a | F37: 62276 | G37: 3080737.305 | H37: n/a | I37: n/a | J37: 52484 | K37: 3080737.305 | L37: 0 | M37: 3080737.305
B38: Home Assistance Program
B39: 21 | C39: Home Assistance Program | D39: 1 | E39: 1 | F39: 3.517344806 | G39: 56119.19 | H39: 0.7 | I39: 0.7 | J39: 2.462141364 | K39: 39283.433 | L39: 2.462141364 | M39: 157133.732
B40: Pre-2011 Programs completed in 2011
B41: 22 | C41: Electricity Retrofit Incentive Program | D41: 0.8 | E41: 0.8 | F41: 40417.54889 | G41: 223956390 | H41: 0.5381783259 | I41: 0.5381783259 | J41: 21550.18536 | K41: 120492549.2 | L41: 21550.18536 | M41: 481970196.8
B42: 23 | C42: High Performance New Construction | D42: 1 | E42: 1 | F42: 10196.88141 | G42: 52371182.9 | H42: 0.4939716133 | I42: 0.4941032091 | J42: 5098.440703 | K42: 26185591.45 | L42: 5098.440703 | M42: 104742365.8
B43: 24 | C43: Toronto Comprehensive | D43: 1.13 | E43: 1.13 | F43: 33466.66725 | G43: 174070574.4 | H43: 0.5 | I43: 0.52 | J43: 15804.96419 | K43: 86964886.21 | L43: 15804.96419 | M43: 347859544.8
B44: 25 | C44: Multifamily Energy Efficiency Rebates | D44: 0.93 | E44: 0.93 | F44: 2553.418788 | G44: 9774791.775 | H44: 0.78 | I44: 0.78 | J44: 1980.62195 | K44: 7595683.351 | L44: 1980.62195 | M44: 30382733.4
B45: 26 | C45: Data Centre Incentive Program | D45: 1 | E45: 1 | F45: 81.4 | G45: 533038 | H45: 1 | I45: 1 | J45: 81.4 | K45: 533038 | L45: 81.4 | M45: 2132152
B46: 27 | C46: EnWin Green Suites | D46: 1 | E46: 1 | F46: 453.032 | G46: 116102.252 | H46: 0.7 | I46: 0.7 | J46: 317.1224 | K46: 81271.5764 | L46: 317.1224 | M46: 325086.3056
C47: Assumes demand response resources have a persistence of 1 year

Sheet Provincial - Progress Summary
B2: Summary - Provincial Progress
B5: Table P3: Province-Wide Net Peak Demand Savings at the End User Level (MW)
B7: Implementation Period | C7: Annual
C8: 2011 | D8: 2012 | E8: 2013 | F8: 2014
B9: 2011 | C9: 215.651 | D9: 136.4426115 | E9: 135.7315269 | F9: 128.8589853
B10: 2012
B11: 2013
B12: 2014
B13: Verified Net Annual Peak Demand Savings in 2014: | F13: =SUM(F9:F12) -> 128.8589853
B14: 2014 Annual CDM Capacity Target | F14: 1330
B15: Verified Peak Demand Savings Target Achieved - 2011 (%): | F15: =F13/F14 -> 0.09688645515
B17: Table P4: Province-Wide Net Energy Savings at the End-User Level (GWh)
B19: Implementation Period | C19: Annual | G19: Cumulative
C20: 2011 | D20: 2012 | E20: 2013 | F20: 2014 | G20: 2011-2014
B21: 2011 | C21: ='[1]Provincial - Results'!K11/10^6 -> 605.4837753 | D21: 601.5876801 | E21: 599.552305 | F21: 580.8800496 | G21: =SUM(C21:F21) -> 2387.50381
B22: 2012 | G22: 0
B23: 2013 | G23: 0
B24: 2014 | G24: 0
B25: Verified Net Cumulative Energy Savings 2011-2014: | G25: =SUM(G21:G24) -> 2387.50381
B26: 2011-2014 Cumulative CDM Energy Target: | G26: 6000
B27: Verified Portion of Energy Target Achieved - 2011 (%): | G27: =G25/G26 -> 0.3979173017

Sheet Methodology
A2: METHODOLOGY
A3: All results are at the end-user level (not including transmission and distribution losses)
A4: EQUATIONS:
A5: PRESCRIPTIVE MEASURES/PROJECTS: Gross Savings = Activity * Per Unit Assumption Net Savings = Gross Savings * Net-to-Gross Ratio All savings are annualized (i.e. the savings are the same regardless of time of year a project was completed or measure installed)
A6: ENGINEERED/CUSTOM PROJECTS: Gross Savings = Reported Savings * Realization Rate Net Savings = Gross Savings * Net-to-Gross Ratio All savings are annualized (i.e. the savings are the same regardless of time of year a project was completed or measure installed)
A7: DEMAND RESPONSE: Peak Demand: Gross Savings = Net Savings = contracted MW at contributor level * Provincial contracted to ex ante ratio Energy: Gross Savings = Net Savings = provincial ex post energy savings * LDC proportion of total provincial contracted MW All savings are annualized (i.e. the savings are the same regardless of the time of year a participant began offering DR)
A9: # | B9: Initiative | C9: Attributing Savings to LDCs | D9: Savings 'start' Date | E9: Calculating Resource Savings
A11: Consumer Program
A12: 1 | B12: Appliance Retirement | C12: Includes both retail and home pickup stream; Retail stream allocated based on average of 2008 & 2009 residential throughput; Home pickup stream directly attributed by postal code or customer selection | D12: Savings are considered to begin in the year the appliance is picked up. | E12: Peak demand and energy savings are determined using the verified measure level per unit assumption multiplied by the uptake in the market (gross) taking into account net-to-gross factors such as free-ridership and spillover (net) at the measure level.
A13: 2 | B13: Appliance Exchange | C13: When postal code information is provided by customer, results are directly attributed to the LDC. When postal code is not available, results allocated based on average of 2008 & 2009 residential throughput | D13: Savings are considered to begin in the year that the exchange event occurred
A14: 3 | B14: HVAC Incentives | C14: Results directly attributed to LDC based on customer postal code | D14: Savings are considered to begin in the year that the installation occurred
A15: 4 | B15: Conservation Instant Coupon Booklet | C15: LDC-coded coupons directly attributed to LDC; Otherwise results are allocated based on average of 2008 & 2009 residential throughput | D15: Savings are considered to begin in the year in which the coupon was redeemed. | E15: Peak demand and energy savings are determined using the verified measure level per unit assumption multiplied by the uptake in the market (gross) taking into account net-to-gross factors such as free-ridership and spillover (net) at the measure level. Initiative was not evaluated in 2011, reported results are presented with verified per unit assumptions and net-to-gross ratio from Bi-Annual Retailer Event and Conservation Instant Coupon Booklet initiatives.
A16: 5 | B16: Bi-Annual Retailer Event | C16: Results are allocated based on average of 2008 & 2009 residential throughput | D16: Savings are considered to begin in the year in which the event occurs.
A17: 6 | B17: Retailer Co-op | C17: When postal code information is provided by the customer, results are directly attributed. If postal code information is not available, results are allocated based on average of 2008 & 2009 residential throughput. | D17: Savings are considered to begin in the year of the home visit and installation date. | E17: Peak demand and energy savings are determined using the verified measure level per unit assumption multiplied by the uptake in the market (gross) taking into account net-to-gross factors such as free-ridership and spillover (net) at the measure level. Initiative was not evaluated in 2011, reported results are presented with verified per unit assumptions and net-to-gross ratio from Bi-Annual Retailer Event and Conservation Instant Coupon Booklet initiatives.
A18: 7 | B18: Residential Demand Response | C18: Results are directly attributed to LDC based on data provided to OPA through project completion reports and continuing participant lists | D18: Savings are considered to begin in the year the device was installed and/or when a customer signed a peaksaver PLUS™ participant agreement. | E18: Peak demand savings are based on an ex ante estimate assuming a 1 in 10 weather year and represents the "insurance value" of the initiative. Energy savings are based on an ex post estimate which reflects the savings that occurred as a result of activations in the year and accounts for any “snapback” in energy consumption experienced after the event. Savings are assumed to persist for only 1 year, reflecting that savings will only occur if the resource is activated.
A19: 8 | B19: Residential New Construction | C19: Results are directly attributed to LDC based on LDC identified in application in the saveONenergy CRM system; Initiative was not evaluated in 2011, reported results are presented with forecast assumptions as per the business case. | D19: Savings are considered to begin in the year of the project completion date. | E19: Peak demand and energy savings are determined using a measure level per unit assumption multiplied by the uptake in the market (gross) taking into account net-to-gross factors such as free-ridership and spillover (net) at the measure level.
A20: Business Program
A21: 9 | B21: Efficiency: Equipment Replacement | C21: Results are directly attributed to LDC based on LDC identified at the facility level in the saveONenergy CRM; Projects in the Application Status: "Post-Stage Submission" are included (excluding "Payment denied by LDC"); Please see "Reference Tables" tab for Building type to Sector mapping | D21: Savings are considered to begin in the year of the actual project completion date on the iCON CRM system. | E21: Peak demand and energy savings are determined by the total savings for a given project as reported in the iCON CRM system (reported). A realization rate is applied to the reported savings to ensure that these savings align with EM&V protocols and reflect the savings that were actually realized (i.e. how many light bulbs were actually installed vs. what was reported) (gross). Net savings takes into account net-to-gross factors such as free-ridership and spillover (net). Both realization rate and net-to-gross ratios can differ for energy and demand savings and depend on the mix of projects within an LDC territory (i.e. lighting or non-lighting project, engineered/custom/prescriptive track).
C22: Additional Note: project counts were derived by filtering out "Application Status" = "Post-Project Submission - Payment denied by LDC" and only including projects with an "Actual Project Completion Date" in 2011 and pulling both the "Application Name" field followed by the "Building Address 1" field from the Post Stage Retrofit Report and finally performing a count of the Building Addresses.
A23: 10 | B23: Direct Installed Lighting | C23: Results are directly attributed to LDC based on the LDC specified on the work order | D23: Savings are considered to begin in the year of the actual project completion date. | E23: Peak demand and energy savings are determined using the verified measure level per unit assumptions multiplied by the uptake of each measure accounting for the realization rate for both peak demand and energy to reflect the savings that were actually realized (i.e. how many light bulbs were actually installed vs. what was reported) (gross). Net savings take into account net-to-gross factors such as free-ridership and spillover for both peak demand and energy savings at the program level (net).
A24: 11 | B24: Existing Building Commissioning Incentive | C24: Results are directly attributed to LDC based on LDC identified in the application; Initiative was not evaluated, no completed projects in 2011. | D24: Savings are considered to begin in the year of the actual project completion date. | E24: Peak demand and energy savings are determined by the total savings for a given project as reported (reported). A realization rate is applied to the reported savings to ensure that these savings align with EM&V protocols and reflect the savings that were actually realized (i.e. how many light bulbs were actually installed vs. what was reported) (gross). Net savings takes into account net-to-gross factors such as free-ridership and spillover (net).
A25: 12 | B25: New Construction and Major Renovation Incentive | C25: Results are directly attributed to LDC based on LDC identified in the application; Initiative was not evaluated, reported results are presented with reported assumptions (as per evaluated results in 2010 and consultation with OPA-LDC Work Groups) | D25: Savings are considered to begin in the year of the actual project completion date.
A26: 13 | B26: Energy Audit | C26: No resource savings results determined in 2011; Projects are directly attributed to LDC based on LDC identified in the application | D26: Savings are considered to begin in the year of the audit date. | E26: Peak demand and energy savings are determined by the total savings resulting from an audit as reported (reported). A realization rate is applied to the reported savings to ensure that these savings align with EM&V protocols and reflect the savings that were actually realized (i.e. how many light bulbs were actually installed vs. what was reported) (gross). Net savings takes into account net-to-gross factors such as free-ridership and spillover (net).
A27: 14 | B27: Commercial Demand Response (part of the Residential program schedule) | C27: Results are directly attributed to LDC based on data provided to OPA through project completion reports and continuing participant lists | D27: Savings are considered to begin in the year the device was installed and/or when a customer signed a peaksaver PLUS™ participant agreement. | E27: Peak demand savings are based on an ex ante estimate assuming a 1 in 10 weather year and represents the "insurance value" of the initiative. Energy savings are based on an ex post estimate which reflects the savings that occurred as a result of activations in the year. Savings are assumed to persist for only 1 year, reflecting that savings will only occur if the resource is activated.
A28: 15 | B28: Demand Response 3 (part of the Industrial program schedule) | C28: Results are attributed to LDCs based on the total contracted megawatts at the contributor level as of December 31st, applying the provincial ex ante to contracted ratio (ex ante estimate/contracted megawatts); Ex post energy savings are attributed to the LDC based on their proportion of the total contracted megawatts at the contributor level. | D28: Savings are considered to begin in the year in which the contributor signed up to participate in demand response. | E28: Peak demand savings are ex ante estimates based on the load reduction capability that can be expected for the purposes of planning. The ex ante estimates factor in both scheduled non-performances (i.e. maintenance) and historical performance. Energy savings are based on an ex post estimate which reflects the savings that actually occurred as a results of activations in the year. Savings are assumed to persist for 1 year, reflecting that savings will not occur if the resource is not activated and additional costs are incurred to activate the resource.
A29: Industrial Program
A30: 16 | B30: Process & System Upgrades | C30: Results are directly attributed to LDC based on LDC identified in application in the saveONenergy CRM system; Initiative was not evaluated, no completed projects in 2011. | D30: Savings are considered to begin in the year in which the incentive project was completed. | E30: Peak demand and energy savings are determined by the total savings from a given project as reported (reported). A realization rate is applied to the reported savings to ensure that these savings align with EM&V protocols and reflect the savings that were actually realized (i.e. how many light bulbs were actually installed vs. what was reported) (gross). Net savings takes into account net-to-gross factors such as free-ridership and spillover (net).
A31: 17 | B31: Monitoring & Targeting | C31: Results are directly attributed to LDC based on LDC identified in the application; Initiative was not evaluated, no completed projects in 2011. | D31: Savings are considered to begin in the year in which the incentive project was completed. | E31: Peak demand and energy savings are determined by the total savings from a given project as reported (reported). A realization rate is applied to the reported savings to ensure that these savings align with EM&V protocols and reflect the savings that were actually realized (i.e. how many light bulbs were actually installed vs. what was reported) (gross). Net savings takes into account net-to-gross factors such as free-ridership and spillover (net).
A32: 18 | B32: Energy Manager | C32: Results are directly attributed to LDC based on LDC identified in the application; Initiative was not evaluated, no completed projects in 2011. | D32: Savings are considered to begin in the year in which the project was completed by the energy manager. If no date is specified the savings will begin the year of the Quarterly Report submitted by the energy manager. | E32: Peak demand and energy savings are determined by the total savings from a given project as reported (reported). A realization rate is applied to the reported savings to ensure that these savings align with EM&V protocols and reflect the savings that were actually realized (i.e. how many light bulbs were actually installed vs. what was reported) (gross). Net savings takes into account net-to-gross factors such as free-ridership and spillover (net).
A33: 19 | B33: Efficiency: Equipment Replacement Incentive (part of the C&I program schedule) | C33: Results are directly attributed to LDC based on LDC identified at the facility level in the saveONenergy CRM; Projects in the Application Status: "Post-Stage Submission" are included (excluding "Payment denied by LDC"); Please see "Reference Tables" tab for Building type to Sector mapping | D33: Savings are considered to begin in the year of the actual project completion date on the iCON CRM system. | E33: Peak demand and energy savings are determined by the total savings for a given project as reported in the iCON CRM system (reported). A realization rate is applied to the reported savings to ensure that these savings align with EM&V protocols and reflect the savings that were actually realized (i.e. how many light bulbs were actually installed vs. what was reported) (gross). Net savings takes into account net-to-gross factors such as free-ridership and spillover (net). Both realization rate and net-to-gross ratios can differ for energy and demand savings and depend on the mix of projects within an LDC territory (i.e. lighting or non-lighting project, engineered/custom/prescriptive track).
A34: 20 | B34: Demand Response 3 | C34: Results are attributed to LDCs based on the total contracted megawatts at the contributor level as of December 31st, applying the provincial ex ante to contracted ratio (ex ante estimate/contracted megawatts); Ex post energy savings are attributed to the LDC based on their proportion of the total contracted megawatts at the contributor level. | D34: Savings are considered to begin in the year in which the contributor signed up to participate in demand response. | E34: Peak demand savings are ex ante estimates based on the load reduction capability that can be expected for the purposes of planning. The ex ante estimates factor in both scheduled non-performances (i.e. maintenance) and historical performance. Energy savings are based on an ex post estimate which reflects the savings that actually occurred as a results of activations in the year. Savings are assumed to persist for 1 year, reflecting that savings will not occur if the resource is not activated and additional costs are incurred to activate the resource.
A35: Home Assistance Program
A36: 21 | B36: Home Assistance Program | C36: Results are directly attributed to LDC based on LDC identified in the application; Initiative was not evaluated in 2011, reported results are presented with forecast assumptions as per the business case. | D36: Savings are considered to begin in the year in which the measures were installed. | E36: Peak demand and energy savings are determined using the measure level per unit assumption multiplied by the uptake of each measure (gross) taking into account net-to-gross factors such as free-ridership and spillover (net) at the measure level.
A37: Pre-2011 Programs completed in 2011
A38: 22 | B38: Electricity Retrofit Incentive Program | C38: Results are directly attributed to LDC based on LDC identified in the application; Initiative was not evaluated in 2011, assumptions as per 2010 evaluation | D38: Savings are considered to begin in the year in which a project was completed. | E38: Peak demand and energy savings are determined by the total savings from a given project as reported (reported). A realization rate is applied to the reported savings to ensure that these savings align with EM&V protocols and reflect the savings that were actually realized (i.e. how many light bulbs were actually installed vs. what was reported) (gross). Net savings takes into account net-to-gross factors such as free-ridership and spillover (net). If energy savings are not available, an estimate is made based on the kWh to kW ratio in the provincial results from the 2010 evaluated results (http://www.powerauthority.on.ca/evaluation-measurement-and-verification/evaluation-reports).
A39: 23 | B39: High Performance New Construction | C39: Results are directly attributed to LDC based on customer data provided to the OPA from Enbridge; Initiative was not evaluated in 2011, assumptions as per 2010 evaluation | D39: Savings are considered to begin in the year in which a project was completed.
A40: 24 | B40: Toronto Comprehensive | C40: Program run exclusively in Toronto Hydro-Electric System Limited service territory; Initiative was not evaluated in 2011, assumptions as per 2010 evaluation
A41: 25 | B41: Multifamily Energy Efficiency Rebates | C41: Results are directly attributed to LDC based on LDC identified in the application; Initiative was not evaluated in 2011, assumptions as per 2010 evaluation | D41: Savings are considered to begin in the year in which a project was completed. | E41: Peak demand and energy savings are determined by the total savings from a given project as reported (reported). A realization rate is applied to the reported savings to ensure that these savings align with EM&V protocols and reflect the savings that were actually realized (i.e. how many light bulbs were actually installed vs. what was reported) (gross). Net savings takes into account net-to-gross factors such as free-ridership and spillover (net). If energy savings are not available, an estimate is made based on the kWh to kW ratio in the provincial results from the 2010 evaluated results (http://www.powerauthority.on.ca/evaluation-measurement-and-verification/evaluation-reports).
A42: 26 | B42: Data Centre Incentive Program | C42: Program run exclusively in PowerStream Inc. service territory; Initiative was not evaluated in 2011, assumptions as per 2009 evaluation
A43: 27 | B43: EnWin Green Suites | C43: Program run exclusively in ENWIN Utilities Ltd. service territory; Initiative was not evaluated in 2011, assumptions as per 2010 evaluation

Sheet Reference Tables
B2: ERII Sector (C&I vs. Industrial Mapping)
B4: Building Type | C4: Sector
B5: Agribusiness - Cattle Farm | C5: C&I
B6: Agribusiness - Dairy Farm | C6: C&I
B7: Agribusiness - Greenhouse | C7: C&I
B8: Agribusiness - Other | C8: C&I
B9: Agribusiness - Other,Mixed-Use - Office/Retail | C9: C&I
B10: Agribusiness - Other,Office,Retail,Warehouse | C10: C&I
B11: Agribusiness - Other,Office,Warehouse | C11: C&I
B12: Agribusiness - Poultry | C12: C&I
B13: Agribusiness - Poultry,Hospitality - Motel | C13: C&I
B14: Agribusiness - Swine | C14: C&I
B15: Convenience Store | C15: C&I
B16: Education - College / Trade School | C16: C&I
B17: Education - College / Trade School,Multi-Residential - Condominium | C17: C&I
B18: Education - College / Trade School,Multi-Residential - Rental Apartment | C18: C&I
B19: Education - College / Trade School,Retail | C19: C&I
B20: Education - Primary School | C20: C&I
B21: Education - Primary School,Education - Secondary School | C21: C&I
B22: Education - Primary School,Multi-Residential - Rental Apartment | C22: C&I
B23: Education - Primary School,Not-for-Profit | C23: C&I
B24: Education - Secondary School | C24: C&I
B25: Education - University | C25: C&I
B26: Education - University,Office | C26: C&I
B27: Hospital/Healthcare - Clinic | C27: C&I
B28: Hospital/Healthcare - Clinic,Hospital/Healthcare - Long-term Care,Hospital/Healthcare - Medical Building | C28: C&I
B29: Hospital/Healthcare - Clinic,Industrial | C29: C&I
B30: Hospital/Healthcare - Clinic,Retail | C30: C&I
B31: Hospital/Healthcare - Long-term Care | C31: C&I
B32: Hospital/Healthcare - Long-term Care,Hospital/Healthcare - Medical Building | C32: C&I
B33: Hospital/Healthcare - Medical Building | C33: C&I
B34: Hospital/Healthcare - Medical Building,Mixed-Use - Office/Retail | C34: C&I
B35: Hospital/Healthcare - Medical Building,Mixed-Use - Office/Retail,Office | C35: C&I
B36: Hospitality - Hotel | C36: C&I
B37: Hospitality - Hotel,Restaurant - Dining | C37: C&I
B38: Hospitality - Motel | C38: C&I
B39: Industrial | C39: Industrial
B40: Mixed-Use - Office/Retail | C40: C&I
B41: Mixed-Use - Office/Retail,Industrial | C41: Industrial
B42: Mixed-Use - Office/Retail,Mixed-Use - Other | C42: C&I
B43: Mixed-Use - Office/Retail,Mixed-Use - Other,Not-for-Profit,Warehouse | C43: C&I
B44: Mixed-Use - Office/Retail,Mixed-Use - Residential/Retail | C44: C&I
B45: Mixed-Use - Office/Retail,Office,Restaurant - Dining,Restaurant - Quick Serve,Retail,Warehouse | C45: C&I
B46: Mixed-Use - Office/Retail,Office,Warehouse | C46: C&I
B47: Mixed-Use - Office/Retail,Retail | C47: C&I
B48: Mixed-Use - Office/Retail,Warehouse | C48: C&I
B49: Mixed-Use - Office/Retail,Warehouse,Industrial | C49: Industrial
B50: Mixed-Use - Other | C50: C&I
B51: Mixed-Use - Other,Industrial | C51: Industrial
B52: Mixed-Use - Other,Not-for-Profit,Office | C52: C&I
B53: Mixed-Use - Other,Office | C53: C&I
B54: Mixed-Use - Other,Other: Please specify | C54: C&I
B55: Mixed-Use - Other,Retail,Warehouse | C55: C&I
B56: Mixed-Use - Other,Warehouse | C56: C&I
B57: Mixed-Use - Residential/Retail | C57: C&I
B58: Mixed-Use - Residential/Retail,Multi-Residential - Condominium | C58: C&I
B59: Mixed-Use - Residential/Retail,Multi-Residential - Rental Apartment | C59: C&I
B60: Mixed-Use - Residential/Retail,Retail | C60: C&I
B61: Multi-Residential - Condominium | C61: C&I
B62: Multi-Residential - Condominium,Multi-Residential - Rental Apartment | C62: C&I
B63: Multi-Residential - Condominium,Other: Please specify | C63: C&I
B64: Multi-Residential - Rental Apartment | C64: C&I
B65: Multi-Residential - Rental Apartment,Multi-Residential - Social Housing Provider,Not-for-Profit | C65: C&I
B66: Multi-Residential - Rental Apartment,Not-for-Profit | C66: C&I
B67: Multi-Residential - Rental Apartment,Warehouse | C67: C&I
B68: Multi-Residential - Social Housing Provider | C68: C&I
B69: Multi-Residential - Social Housing Provider,Industrial | C69: C&I
B70: Multi-Residential - Social Housing Provider,Not-for-Profit | C70: C&I
B71: Not-for-Profit | C71: C&I
B72: Not-for-Profit,Office | C72: C&I
B73: Not-for-Profit,Other: Please specify | C73: C&I
B74: Not-for-Profit,Warehouse | C74: C&I
B75: Office | C75: C&I
B76: Office,Industrial | C76: Industrial
B77: Office,Other: Please specify | C77: C&I
B78: Office,Other: Please specify,Warehouse | C78: C&I
B79: Office,Restaurant - Dining | C79: C&I
B80: Office,Restaurant - Dining,Industrial | C80: Industrial
B81: Office,Retail | C81: C&I
B82: Office,Retail,Industrial | C82: C&I
B83: Office,Retail,Warehouse | C83: C&I
B84: Office,Warehouse | C84: C&I
B85: Office,Warehouse,Industrial | C85: Industrial
B86: Other: Please specify | C86: C&I
B87: Other: Please specify,Industrial | C87: Industrial
B88: Other: Please specify,Retail | C88: C&I
B89: Other: Please specify,Warehouse | C89: C&I
B90: Restaurant - Dining | C90: C&I
B91: Restaurant - Dining,Retail | C91: C&I
B92: Restaurant - Quick Serve | C92: C&I
B93: Restaurant - Quick Serve,Retail | C93: C&I
B94: Retail | C94: C&I
B95: Retail,Industrial | C95: Industrial
B96: Retail,Warehouse | C96: C&I
B97: Warehouse | C97: C&I
B98: Warehouse,Industrial | C98: Industrial
B100: Consumer Program Allocation Methodology
B101: Results can be allocated based on average of 2008 & 2009 residential throughput for each LDC (below) when additional information is not available. Source: OEB Yearbook Data 2008 & 2009
B103: Local Distribution Company | C103: Allocation
B104: Algoma Power Inc. | C104: 0.002207240306
B105: Atikokan Hydro Inc. | C105: 0.0002654436043
B106: Attawapiskat Power Corporation | C106: 0.0002545162176
B107: Bluewater Power Distribution Corporation | C107: 0.006460432743
B108: Brant County Power Inc. | C108: 0.00197851867
B109: Brantford Power Inc. | C109: 0.007255260622
B110: Burlington Hydro Inc. | C110: 0.01375669674
B111: Cambridge and North Dumfries Hydro Inc. | C111: 0.009577517586
B112: Canadian Niagara Power Inc. | C112: 0.005110036622
B113: Centre Wellington Hydro Ltd. | C113: 0.001129219602
B114: Chapleau Public Utilities Corporation | C114: 0.0003785666443
B115: COLLUS Power Corporation | C115: 0.002857756491
B116: Cooperative Hydro Embrun Inc. | C116: 0.0004942133976
B117: E.L.K. Energy Inc. | C117: 0.002269539862
B118: Enersource Hydro Mississauga Inc. | C118: 0.03926486289
B119: ENTEGRUS | C119: 0.005766581881
B120: ENWIN Utilities Ltd. | C120: 0.01554226259
B121: Erie Thames Powerlines Corporation | C121: 0.003535060725
B122: Espanola Regional Hydro Distribution Corporation | C122: 0.0008213104729
B123: Essex Powerlines Corporation | C123: 0.006538897858
B124: Festival Hydro Inc. | C124: 0.003498069863
B125: Fort Albany Power Corporation | C125: 0.0002124807002
B126: Fort Frances Power Corporation | C126: 0.0009947142656
B127: Greater Sudbury Hydro Inc. | C127: 0.01027584035
B128: Grimsby Power Inc. | C128: 0.002279194452
B129: Guelph Hydro Electric Systems Inc. | C129: 0.008983262706
B130: Haldimand County Hydro Inc. | C130: 0.004244086657
B131: Halton Hills Hydro Inc. | C131: 0.005474749887
B132: Hearst Power Distribution Company Limited | C132: 0.000667350905
B133: Horizon Utilities Corporation | C133: 0.04042850104
B134: Hydro 2000 Inc. | C134: 0.0003895989324
B135: Hydro Hawkesbury Inc. | C135: 0.001393844662
B136: Hydro One Brampton Networks Inc. | C136: 0.0281802169
B137: Hydro One Networks Inc. | C137: 0.2997879268
B138: Hydro Ottawa Limited | C138: 0.05595383703
B139: Innisfil Hydro Distribution Systems Limited | C139: 0.003950934782
B140: Kashechewan Power Corporation | C140: 0.000285622863
B141: Kenora Hydro Electric Corporation Ltd. | C141: 0.0009891909755
B142: Kingston Hydro Corporation | C142: 0.005013763431
B143: Kitchener-Wilmot Hydro Inc. | C143: 0.01631011063
B144: Lakefront Utilities Inc. | C144: 0.001906793613
B145: Lakeland Power Distribution Ltd. | C145: 0.002046562378
B146: London Hydro Inc. | C146: 0.02730826936
B147: Middlesex Power Distribution Corporation | C147: 0.00145963611
B148: Midland Power Utility Corporation | C148: 0.001195501277
B149: Milton Hydro Distribution Inc. | C149: 0.005695487056
B150: Newmarket - Tay Power Distribution Ltd. | C150: 0.006606525964
B151: Niagara Peninsula Energy Inc. | C151: 0.009944543575
B152: Niagara-on-the-Lake Hydro Inc. | C152: 0.001585779622
B153: Norfolk Power Distribution Inc. | C153: 0.003495199041
B154: North Bay Hydro Distribution Limited | C154: 0.005332774409
B155: Northern Ontario Wires Inc. | C155: 0.001061408148
B156: Oakville Hydro Electricity Distribution Inc. | C156: 0.01463153191
B157: Orangeville Hydro Limited | C157: 0.002120139525
B158: Orillia Power Distribution Corporation | C158: 0.002722336803
B159: Oshawa PUC Networks Inc. | C159: 0.01228301541
B160: Ottawa River Power Corporation | C160: 0.001974217891
B161: Parry Sound Power Corporation | C161: 0.0008592070709
B162: Peterborough Distribution Incorporated | C162: 0.007132338247
B163: PowerStream Inc. | C163: 0.06638337812
B164: PUC Distribution Inc. | C164: 0.008687478762
B165: Renfrew Hydro Inc. | C165: 0.0007751687459
B166: Rideau St. Lawrence Distribution Inc. | C166: 0.001120128261
B167: Sioux Lookout Hydro Inc. | C167: 0.0008405046767
B168: St. Thomas Energy Inc. | C168: 0.002939336791
B169: Thunder Bay Hydro Electricity Distribution Inc. | C169: 0.008738102866
B170: Tillsonburg Hydro Inc. | C170: 0.001279739959
B171: Toronto Hydro-Electric System Limited | C171: 0.1279792468
B172: Veridian Connections Inc. | C172: 0.02352501922
B173: Wasaga Distribution Inc. | C173: 0.001799242182
B174: Waterloo North Hydro Inc. | C174: 0.01001881047
B175: Welland Hydro-Electric System Corp. | C175: 0.003878895657
B176: Wellington North Power Inc. | C176: 0.0006324479623
B177: West Coast Huron Energy Inc. | C177: 0.0006532857746
B178: Westario Power Inc. | C178: 0.005411462592
B179: Whitby Hydro Electric Corporation | C179: 0.008650871881
B180: Woodstock Hydro Services Inc. | C180: 0.002548378484

Sheet Glossary
A1: Reporting Glossary
A3: Annual: the peak demand or energy savings that occur in a given year (includes resource savings from new program activity in a given year and resource savings persisting from previous years).
A4: Cumulative Energy Savings: represents the sum of the annual energy savings that accrue over a defined period (in the context of this report the defined period is 2011 - 2014). This concept does not apply to peak demand savings.
A5: End-User Level: resource savings in this report are measured at the customer level as opposed to the generator level (the difference being line losses).
A6: Free-ridership: the percentage of participants who would have implemented the program measure or practice in the absence of the program.
A7: Incremental: the new resource savings attributable to activity procured in a particular reporting period based on when the savings are considered to 'start' (please see table 5).
A8: Initiative: a Conservation & Demand Management offering focusing on a particular opportunity or customer end-use (i.e. Retrofit, Fridge & Freezer Pickup).
A9: Net-to-Gross Ratio: The ratio of net savings to gross savings, which takes into account factors such as free‐ridership and spillover
A10: Net Energy Savings (MWh): energy savings attributable to conservation and demand management activities net of free-riders, etc.
A11: Net Peak Demand Savings (MW): peak demand savings attributable to conservation and demand management activities net of free-riders, etc.
A12: Program: a group of initiatives that target a particular market sector (i.e. Consumer, Industrial).
A13: Realization Rate: A comparison of observed or measured (evaluated) information to original reported savings which is used to adjust the gross savings estimates.
A14: Settlement Account: the grouping of demand response facilities (contributors) into one contractual agreement
A15: Spillover: Reductions in energy consumption and/or demand caused by the presence of the energy efficiency program, beyond the program-related gross savings of the participants. There can be participant and/or non-participant spillover.
A16: Unit: for a specific initiative the relevant type of activity acquired in the market place (i.e. appliances picked up, projects completed, coupons redeemed).
